[Event "*** Titled Tuesday Blitz"]
[Site "Chess.com"]
[Date "2020.10.20"]
[Round "7"]
[White "TigranMukhutdinov"]
[Black "TorFredrikKaasen"]
[Result "0-1"]
[WhiteElo "2519"]
[BlackElo "2698"]
[TimeControl "180+1"]
[EndTime "11:20:31 PDT"]
[Termination "TorFredrikKaasen won by resignation"]

1. Nf3 {[%clk 0:03:00.9]} 1... Nf6 {[%clk 0:02:57.9]} 2. g3 {[%clk 0:03:01.1]}
2... b6 {[%clk 0:02:54.8]} 3. Bg2 {[%clk 0:03:00.4]} 3... Bb7 {[%clk 0:02:55.4]}
4. O-O {[%clk 0:03:00.9]} 4... g6 {[%clk 0:02:55.9]} 5. b3 {[%clk 0:03:01]} 5...
Bg7 {[%clk 0:02:56.3]} 6. Bb2 {[%clk 0:03:01.7]} 6... O-O {[%clk 0:02:57]} 7. c4
{[%clk 0:03:02.4]} 7... d6 {[%clk 0:02:57.3]} 8. d4 {[%clk 0:03:02.7]} 8... Nbd7
{[%clk 0:02:56.8]} 9. Nc3 {[%clk 0:03:01.9]} 9... Ne4 {[%clk 0:02:56.8]} 10. Nd5
{[%clk 0:02:50.9]} 10... e6 {[%clk 0:02:51.4]} 11. Ne3 {[%clk 0:02:48.1]} 11...
f5 {[%clk 0:02:42.3]} 12. Qc2 {[%clk 0:02:47.4]} 12... Ndf6 {[%clk 0:02:38.7]}
13. Rfd1 {[%clk 0:02:44]} 13... a5 {[%clk 0:02:35.7]} 14. Nd2 {[%clk 0:02:42.2]}
14... Qc8 {[%clk 0:02:31.2]} 15. Nxe4 {[%clk 0:02:33.1]} 15... Nxe4 {[%clk
0:02:32.1]} 16. d5 {[%clk 0:02:29.8]} 16... Bxb2 {[%clk 0:02:05.4]} 17. Qxb2
{[%clk 0:02:30.7]} 17... Nf6 {[%clk 0:02:05.3]} 18. dxe6 {[%clk 0:02:12]} 18...
Bxg2 {[%clk 0:02:04.3]} 19. e7 {[%clk 0:02:12.2]} 19... Rf7 {[%clk 0:02:01.1]}
20. Nxg2 {[%clk 0:02:11.8]} 20... Qe6 {[%clk 0:01:50.4]} 21. Nf4 {[%clk
0:02:08.8]} 21... Qxe7 {[%clk 0:01:49.5]} 22. Rd3 {[%clk 0:02:05.5]} 22... Re8
{[%clk 0:01:44.1]} 23. Re3 {[%clk 0:01:58.3]} 23... Qd7 {[%clk 0:01:44.1]} 24.
Rxe8+ {[%clk 0:01:56.8]} 24... Qxe8 {[%clk 0:01:44.2]} 25. Rd1 {[%clk
0:01:57.3]} 25... Qe7 {[%clk 0:01:11.7]} 26. h4 {[%clk 0:01:56.1]} 26... Rf8
{[%clk 0:01:09.6]} 27. a3 {[%clk 0:01:50.4]} 27... Re8 {[%clk 0:01:05]} 28. b4
{[%clk 0:01:48.8]} 28... axb4 {[%clk 0:01:01.3]} 29. axb4 {[%clk 0:01:49.7]}
29... Ra8 {[%clk 0:00:58.6]} 30. Qb3 {[%clk 0:01:43.6]} 30... Kg7 {[%clk
0:00:57]} 31. Qb2 {[%clk 0:01:26.7]} 31... Kf7 {[%clk 0:00:46.1]} 32. Qb3 {[%clk
0:01:22.5]} 32... Kg7 {[%clk 0:00:44]} 33. Qb2 {[%clk 0:01:09.8]} 33... Ra7
{[%clk 0:00:22.8]} 34. Rd3 {[%clk 0:01:09.2]} 34... Qe5 {[%clk 0:00:21.2]} 35.
Qxe5 {[%clk 0:01:04]} 35... dxe5 {[%clk 0:00:22.1]} 36. Nd5 {[%clk 0:01:04.9]}
36... Nxd5 {[%clk 0:00:18.3]} 37. Rxd5 {[%clk 0:01:05.8]} 37... Kf6 {[%clk
0:00:18.3]} 38. Rd7 {[%clk 0:01:05]} 38... h5 {[%clk 0:00:17.9]} 39. c5 {[%clk
0:01:04.4]} 39... bxc5 {[%clk 0:00:17.5]} 40. bxc5 {[%clk 0:01:05.3]} 40... Ke6
{[%clk 0:00:15.1]} 41. c6 {[%clk 0:01:05.5]} 41... Kf6 {[%clk 0:00:07.9]} 42.
Kg2 {[%clk 0:01:04.7]} 42... Ke6 {[%clk 0:00:08.4]} 43. Kf3 {[%clk 0:01:04.3]}
43... Ra3+ {[%clk 0:00:08.7]} 44. e3 {[%clk 0:01:03.7]} 44... Ra7 {[%clk
0:00:09.3]} 45. Ke2 {[%clk 0:01:03.3]} 45... Ra2+ {[%clk 0:00:09.6]} 46. Ke1
{[%clk 0:01:03.1]} 46... Ra1+ {[%clk 0:00:09.4]} 47. Ke2 {[%clk 0:00:37.5]}
47... Ra2+ {[%clk 0:00:10]} 48. Kf1 {[%clk 0:00:37.6]} 48... Ra1+ {[%clk
0:00:10.3]} 49. Kg2 {[%clk 0:00:37.9]} 49... Ra7 {[%clk 0:00:10.9]} 50. Kf3
{[%clk 0:00:37.9]} 50... Kf6 {[%clk 0:00:09.8]} 51. e4 {[%clk 0:00:37.2]} 51...
Ke6 {[%clk 0:00:03.1]} 52. exf5+ {[%clk 0:00:34.1]} 52... gxf5 {[%clk 0:00:04]}
53. Rh7 {[%clk 0:00:34]} 53... Ra6 {[%clk 0:00:01.9]} 54. Rh6+ {[%clk
0:00:33.6]} 54... Kd5 {[%clk 0:00:01.9]} 55. Rxh5 {[%clk 0:00:34]} 55... Ra3+
{[%clk 0:00:02.1]} 56. Ke2 {[%clk 0:00:33.5]} 56... Ke4 {[%clk 0:00:02]} 57. f3+
{[%clk 0:00:32.8]} 57... Rxf3 {[%clk 0:00:01.8]} 58. Rxf5 {[%clk 0:00:33.7]}
58... Rxf5 {[%clk 0:00:01.7]} 0-1

[Event "*** Titled Tuesday Blitz"]
[Site "Chess.com"]
[Date "2020.10.20"]
[Round "7"]
[White "esrosenberg"]
[Black "Sergey85Rodchenkov"]
[Result "0-1"]
[WhiteElo "2289"]
[BlackElo "2425"]
[TimeControl "180+1"]
[EndTime "11:20:31 PDT"]
[Termination "Sergey85Rodchenkov won on time"]

1. Nf3 {[%clk 0:03:00.9]} 1... Nf6 {[%clk 0:02:59.6]} 2. c4 {[%clk 0:03:01.3]}
2... b6 {[%clk 0:02:59.2]} 3. g3 {[%clk 0:03:01.1]} 3... Bb7 {[%clk 0:02:59.2]}
4. Bg2 {[%clk 0:03:01.7]} 4... e6 {[%clk 0:02:59]} 5. O-O {[%clk 0:02:59.8]}
5... Be7 {[%clk 0:02:59.1]} 6. d4 {[%clk 0:02:58]} 6... O-O {[%clk 0:02:58.9]}
7. Nc3 {[%clk 0:02:53.9]} 7... Na6 {[%clk 0:02:58.9]} 8. d5 {[%clk 0:02:53.2]}
8... Bb4 {[%clk 0:02:57.4]} 9. Bg5 {[%clk 0:02:44.2]} 9... Bxc3 {[%clk
0:02:54.7]} 10. bxc3 {[%clk 0:02:43.8]} 10... Nc5 {[%clk 0:02:55.1]} 11. Nd2
{[%clk 0:02:37.8]} 11... h6 {[%clk 0:02:48.1]} 12. Be3 {[%clk 0:02:28.8]} 12...
d6 {[%clk 0:02:25.2]} 13. Bxc5 {[%clk 0:02:16.5]} 13... bxc5 {[%clk 0:02:25]}
14. dxe6 {[%clk 0:02:16.5]} 14... Bxg2 {[%clk 0:02:24.6]} 15. exf7+ {[%clk
0:02:16.8]} 15... Rxf7 {[%clk 0:02:25]} 16. Kxg2 {[%clk 0:02:17.7]} 16... Qe8
{[%clk 0:02:23.7]} 17. e3 {[%clk 0:02:10.3]} 17... Qe6 {[%clk 0:02:01.4]} 18.
Qf3 {[%clk 0:02:06.6]} 18... Raf8 {[%clk 0:01:54.8]} 19. h3 {[%clk 0:01:47.8]}
19... Kh8 {[%clk 0:01:54]} 20. Rab1 {[%clk 0:01:35.5]} 20... Nd7 {[%clk
0:01:32.4]} 21. Qd5 {[%clk 0:01:34.3]} 21... Qg6 {[%clk 0:01:29.6]} 22. Qe4
{[%clk 0:01:20.9]} 22... Qf6 {[%clk 0:01:23.4]} 23. Rb3 {[%clk 0:00:59.4]} 23...
Nb6 {[%clk 0:01:09.4]} 24. f4 {[%clk 0:00:57.1]} 24... a5 {[%clk 0:01:04.1]} 25.
Qd3 {[%clk 0:00:42.4]} 25... Re7 {[%clk 0:00:58.7]} 26. Re1 {[%clk 0:00:30.8]}
26... Rfe8 {[%clk 0:00:57.7]} 27. e4 {[%clk 0:00:30.4]} 27... a4 {[%clk
0:00:55.2]} 28. Rb2 {[%clk 0:00:26.8]} 28... Qf7 {[%clk 0:00:48.8]} 29. a3
{[%clk 0:00:24.6]} 29... Re6 {[%clk 0:00:43]} 30. Re3 {[%clk 0:00:21.8]} 30...
Qd7 {[%clk 0:00:42.5]} 31. Rb1 {[%clk 0:00:21.2]} 31... Qc6 {[%clk 0:00:42.3]}
32. Rbe1 {[%clk 0:00:18.4]} 32... R6e7 {[%clk 0:00:40.8]} 33. Nf3 {[%clk
0:00:18.6]} 33... Qb7 {[%clk 0:00:38.6]} 34. g4 {[%clk 0:00:16.8]} 34... Qa6
{[%clk 0:00:37.7]} 35. Nd2 {[%clk 0:00:16]} 35... Rf8 {[%clk 0:00:35.6]} 36. Kg3
{[%clk 0:00:16.2]} 36... Ref7 {[%clk 0:00:34.3]} 37. f5 {[%clk 0:00:15.9]} 37...
Nd7 {[%clk 0:00:34]} 38. Nf3 {[%clk 0:00:13.2]} 38... Re7 {[%clk 0:00:33.3]} 39.
e5 {[%clk 0:00:13]} 39... dxe5 {[%clk 0:00:27.4]} 40. Nxe5 {[%clk 0:00:13.1]}
40... Nxe5 {[%clk 0:00:24.6]} 41. Rxe5 {[%clk 0:00:14]} 41... Ref7 {[%clk
0:00:21.4]} 42. Re8 {[%clk 0:00:12.2]} 42... Qc6 {[%clk 0:00:19.6]} 43. Rxf8+
{[%clk 0:00:12]} 43... Rxf8 {[%clk 0:00:19.8]} 44. Qd5 {[%clk 0:00:12.1]} 44...
Qb6 {[%clk 0:00:19.4]} 45. Re6 {[%clk 0:00:10.6]} 45... Qb3 {[%clk 0:00:18.4]}
46. Qe5 {[%clk 0:00:08.4]} 46... Qxc4 {[%clk 0:00:17.2]} 47. Re7 {[%clk
0:00:08.5]} 47... Rf7 {[%clk 0:00:13.6]} 48. Re8+ {[%clk 0:00:08.1]} 48... Kh7
{[%clk 0:00:13.8]} 49. Re6 {[%clk 0:00:05.6]} 49... Qd3+ {[%clk 0:00:13.3]} 50.
Qe3 {[%clk 0:00:04]} 50... Qd1 {[%clk 0:00:13.1]} 51. Rg6 {[%clk 0:00:02.6]}
51... Rd7 {[%clk 0:00:12.2]} 0-1

[Event "*** Titled Tuesday Blitz"]
[Site "Chess.com"]
[Date "2020.10.20"]
[Round "7"]
[White "OhanyanEminChess"]
[Black "ehrenfeld"]
[Result "1-0"]
[WhiteElo "2655"]
[BlackElo "2487"]
[TimeControl "180+1"]
[EndTime "11:20:32 PDT"]
[Termination "OhanyanEminChess won by resignation"]

1. e4 {[%clk 0:03:00.9]} 1... d6 {[%clk 0:02:59.3]} 2. d4 {[%clk 0:03:00.4]}
2... g6 {[%clk 0:02:59.3]} 3. Nc3 {[%clk 0:02:58.8]} 3... Bg7 {[%clk 0:02:59.4]}
4. f4 {[%clk 0:02:58.5]} 4... a6 {[%clk 0:02:59.1]} 5. Nf3 {[%clk 0:02:58.5]}
5... b5 {[%clk 0:02:59.2]} 6. Bd3 {[%clk 0:02:58.1]} 6... Nd7 {[%clk 0:02:58.7]}
7. e5 {[%clk 0:02:57.7]} 7... c5 {[%clk 0:02:58.8]} 8. Ne4 {[%clk 0:02:50.4]}
8... Nh6 {[%clk 0:02:31.4]} 9. c3 {[%clk 0:02:41.2]} 9... O-O {[%clk 0:02:27.7]}
10. O-O {[%clk 0:02:32.1]} 10... cxd4 {[%clk 0:02:22.2]} 11. cxd4 {[%clk
0:02:30.4]} 11... Nb6 {[%clk 0:02:20.6]} 12. Qe2 {[%clk 0:02:22.9]} 12... Bg4
{[%clk 0:02:15.7]} 13. h3 {[%clk 0:02:20.3]} 13... Bxf3 {[%clk 0:02:15.5]} 14.
Qxf3 {[%clk 0:02:21.2]} 14... Nf5 {[%clk 0:02:15.8]} 15. Be3 {[%clk 0:02:12.6]}
15... dxe5 {[%clk 0:02:02.8]} 16. dxe5 {[%clk 0:02:11.3]} 16... Qxd3 {[%clk
0:01:33.2]} 17. Bxb6 {[%clk 0:02:07.5]} 17... Qxf3 {[%clk 0:01:32.6]} 18. Rxf3
{[%clk 0:02:03.1]} 18... Rac8 {[%clk 0:01:20.8]} 19. Bf2 {[%clk 0:01:34.2]}
19... Rc4 {[%clk 0:01:04.2]} 20. Nc3 {[%clk 0:01:22.1]} 20... Rd8 {[%clk
0:00:47.1]} 21. Rd1 {[%clk 0:00:56.3]} 21... Rxd1+ {[%clk 0:00:44.8]} 22. Nxd1
{[%clk 0:00:57.2]} 22... f6 {[%clk 0:00:43.7]} 23. e6 {[%clk 0:00:35.9]} 23...
Nd4 {[%clk 0:00:40]} 24. Bxd4 {[%clk 0:00:17.8]} 24... Rxd4 {[%clk 0:00:40]} 25.
Nf2 {[%clk 0:00:10.9]} 25... f5 {[%clk 0:00:37.8]} 26. Rd3 {[%clk 0:00:10.3]}
26... Rxf4 {[%clk 0:00:30.2]} 27. Rd8+ {[%clk 0:00:09.5]} 27... Bf8 {[%clk
0:00:30.4]} 28. Nd3 {[%clk 0:00:10.4]} 28... Rc4 {[%clk 0:00:15.2]} 29. Ne5
{[%clk 0:00:10.6]} 29... Rc1+ {[%clk 0:00:13.9]} 30. Kh2 {[%clk 0:00:10.7]}
30... Kg7 {[%clk 0:00:12.7]} 31. Nd7 {[%clk 0:00:10.3]} 31... Re1 {[%clk
0:00:08.8]} 32. Nxf8 {[%clk 0:00:09.6]} 32... h6 {[%clk 0:00:08.4]} 33. Re8
{[%clk 0:00:06.3]} 33... Kf6 {[%clk 0:00:08.1]} 34. Ra8 {[%clk 0:00:05.4]} 34...
Re2 {[%clk 0:00:07.4]} 35. Rxa6 {[%clk 0:00:05.4]} 35... Rxb2 {[%clk 0:00:07.4]}
36. Nd7+ {[%clk 0:00:06]} 36... Kg7 {[%clk 0:00:06.6]} 37. Nc5 {[%clk
0:00:05.1]} 37... f4 {[%clk 0:00:06.6]} 38. Kg1 {[%clk 0:00:03.7]} 38... g5
{[%clk 0:00:06.5]} 39. Rb6 {[%clk 0:00:03.6]} 39... h5 {[%clk 0:00:06.5]} 40. a4
{[%clk 0:00:03.2]} 40... Rb1+ {[%clk 0:00:06.2]} 41. Kh2 {[%clk 0:00:03]} 41...
Rb2 {[%clk 0:00:06.4]} 42. Rxb5 {[%clk 0:00:03]} 42... Ra2 {[%clk 0:00:04.4]}
43. Nd3 {[%clk 0:00:02.3]} 43... f3 {[%clk 0:00:04.3]} 44. Rxg5+ {[%clk
0:00:02.7]} 44... Kf6 {[%clk 0:00:04.6]} 45. Rg3 {[%clk 0:00:03.3]} 45... f2
{[%clk 0:00:04.2]} 46. Rf3+ {[%clk 0:00:03.6]} 46... Kxe6 {[%clk 0:00:04.8]} 47.
Rxf2 {[%clk 0:00:03.8]} 47... Rxa4 {[%clk 0:00:04.8]} 48. Nc5+ {[%clk
0:00:03.9]} 1-0

[Event "*** Titled Tuesday Blitz"]
[Site "Chess.com"]
[Date "2020.10.20"]
[Round "7"]
[White "FMalexhdez"]
[Black "Xeniya2005"]
[Result "1-0"]
[WhiteElo "2273"]
[BlackElo "2387"]
[TimeControl "180+1"]
[EndTime "11:20:34 PDT"]
[Termination "FMalexhdez won on time"]

1. e4 {[%clk 0:03:00.9]} 1... e6 {[%clk 0:03:00.1]} 2. d4 {[%clk 0:02:59.5]}
2... d5 {[%clk 0:03:00]} 3. Nc3 {[%clk 0:02:59.1]} 3... Nf6 {[%clk 0:02:55.3]}
4. e5 {[%clk 0:02:59.5]} 4... Nfd7 {[%clk 0:02:54.2]} 5. f4 {[%clk 0:03:00.2]}
5... c5 {[%clk 0:02:51.8]} 6. Nf3 {[%clk 0:03:00.7]} 6... Nc6 {[%clk 0:02:50.4]}
7. Ne2 {[%clk 0:03:00.4]} 7... cxd4 {[%clk 0:02:46.6]} 8. Nexd4 {[%clk
0:02:59.9]} 8... Bc5 {[%clk 0:02:44.1]} 9. c3 {[%clk 0:03:00]} 9... Qb6 {[%clk
0:02:37.9]} 10. Be2 {[%clk 0:02:59.3]} 10... O-O {[%clk 0:02:33.2]} 11. O-O
{[%clk 0:02:56.9]} 11... Nxd4 {[%clk 0:02:28.6]} 12. Nxd4 {[%clk 0:02:53.1]}
12... Nb8 {[%clk 0:02:25.8]} 13. Kh1 {[%clk 0:02:52.5]} 13... Nc6 {[%clk
0:02:21.9]} 14. Nf3 {[%clk 0:02:19.2]} 14... Bd7 {[%clk 0:02:11.6]} 15. Bd3
{[%clk 0:02:19.1]} 15... h6 {[%clk 0:01:59.1]} 16. Qe2 {[%clk 0:02:17.8]} 16...
Rac8 {[%clk 0:01:48.2]} 17. b4 {[%clk 0:02:17.1]} 17... Be7 {[%clk 0:01:39.8]}
18. Be3 {[%clk 0:02:17.5]} 18... Qd8 {[%clk 0:01:35.8]} 19. Nd4 {[%clk 0:02:15]}
19... Nxd4 {[%clk 0:01:33.7]} 20. Bxd4 {[%clk 0:02:15.2]} 20... a6 {[%clk
0:01:29.9]} 21. f5 {[%clk 0:02:14.2]} 21... exf5 {[%clk 0:01:24.2]} 22. Bxf5
{[%clk 0:02:14.1]} 22... Bxf5 {[%clk 0:01:18.4]} 23. Rxf5 {[%clk 0:02:14.1]}
23... Qd7 {[%clk 0:01:16.7]} 24. Raf1 {[%clk 0:01:59.9]} 24... Qe6 {[%clk
0:01:16.3]} 25. Qf2 {[%clk 0:01:44.1]} 25... Rc4 {[%clk 0:01:08.5]} 26. a3
{[%clk 0:01:30.9]} 26... Rc6 {[%clk 0:01:02.9]} 27. Qg3 {[%clk 0:01:13.9]} 27...
Qg6 {[%clk 0:00:48.8]} 28. Qh3 {[%clk 0:01:05.8]} 28... f6 {[%clk 0:00:38]} 29.
exf6 {[%clk 0:01:03.8]} 29... Bxf6 {[%clk 0:00:36.2]} 30. Rxd5 {[%clk
0:00:28.3]} 30... Qe4 {[%clk 0:00:12.7]} 31. Rdf5 {[%clk 0:00:20.5]} 31... Re6
{[%clk 0:00:10.6]} 32. Bxf6 {[%clk 0:00:19.1]} 32... Rfxf6 {[%clk 0:00:08.8]}
33. Rxf6 {[%clk 0:00:18.1]} 33... Rxf6 {[%clk 0:00:08.9]} 34. Rg1 {[%clk
0:00:14.9]} 34... Kh7 {[%clk 0:00:06.6]} 35. Qc8 {[%clk 0:00:11.2]} 35... Rf2
{[%clk 0:00:05.9]} 36. a4 {[%clk 0:00:08]} 36... h5 {[%clk 0:00:05.1]} 37. Qc5
{[%clk 0:00:07.7]} 37... Rf5 {[%clk 0:00:03.2]} 38. Qd4 {[%clk 0:00:07.3]} 38...
Qc6 {[%clk 0:00:03.2]} 39. h3 {[%clk 0:00:05.1]} 39... Rg5 {[%clk 0:00:02.9]}
40. Qd3+ {[%clk 0:00:04.2]} 40... g6 {[%clk 0:00:02.8]} 41. Qf3 {[%clk 0:00:03]}
41... Qxf3 {[%clk 0:00:01.4]} 42. gxf3 {[%clk 0:00:02.9]} 42... Rf5 {[%clk
0:00:01.9]} 43. Kg2 {[%clk 0:00:02.6]} 43... Rf4 {[%clk 0:00:02.1]} 44. Rc1
{[%clk 0:00:02.8]} 44... Rc4 {[%clk 0:00:02]} 45. Rc2 {[%clk 0:00:02.3]} 45...
a5 {[%clk 0:00:02]} 46. Kf2 {[%clk 0:00:02.9]} 46... axb4 {[%clk 0:00:01.8]} 47.
Rb2 {[%clk 0:00:03]} 1-0

[Event "*** Titled Tuesday Blitz"]
[Site "Chess.com"]
[Date "2020.10.20"]
[Round "7"]
[White "ural58"]
[Black "TrenerChos"]
[Result "1-0"]
[WhiteElo "2342"]
[BlackElo "2182"]
[TimeControl "180+1"]
[EndTime "11:20:36 PDT"]
[Termination "ural58 won on time"]

1. e4 {[%clk 0:02:59.4]} 1... c5 {[%clk 0:03:00.3]} 2. b3 {[%clk 0:02:58.7]}
2... Nc6 {[%clk 0:02:59.6]} 3. Bb2 {[%clk 0:02:49.8]} 3... e6 {[%clk 0:02:59.8]}
4. Qe2 {[%clk 0:02:48.2]} 4... e5 {[%clk 0:02:49.8]} 5. f4 {[%clk 0:02:46.5]}
5... d6 {[%clk 0:02:46.1]} 6. Nc3 {[%clk 0:02:45.1]} 6... Nf6 {[%clk 0:02:39.3]}
7. O-O-O {[%clk 0:02:43.7]} 7... Nd4 {[%clk 0:02:36.7]} 8. Qf2 {[%clk
0:02:43.2]} 8... Ng4 {[%clk 0:02:32.8]} 9. Qg3 {[%clk 0:02:41.3]} 9... Be7
{[%clk 0:02:26.7]} 10. Nf3 {[%clk 0:02:41.2]} 10... Nxf3 {[%clk 0:02:20.1]} 11.
gxf3 {[%clk 0:02:00.2]} 11... Bh4 {[%clk 0:02:14]} 12. Qg2 {[%clk 0:02:00.4]}
12... Nf2 {[%clk 0:02:09.3]} 13. Qxg7 {[%clk 0:01:59.9]} 13... Bf6 {[%clk
0:02:06]} 14. Bb5+ {[%clk 0:01:59.4]} 14... Bd7 {[%clk 0:01:56.6]} 15. Bxd7+
{[%clk 0:01:59.1]} 15... Kxd7 {[%clk 0:01:55.8]} 16. Qxf7+ {[%clk 0:01:58.5]}
16... Kc8 {[%clk 0:01:43.7]} 17. Nd5 {[%clk 0:01:54]} 17... Rf8 {[%clk
0:01:38.8]} 18. Qxh7 {[%clk 0:01:53.9]} 18... Nxd1 {[%clk 0:01:35.8]} 19. Rxd1
{[%clk 0:01:51.8]} 19... Qd7 {[%clk 0:01:31.2]} 20. Qh5 {[%clk 0:01:16.2]} 20...
Qf7 {[%clk 0:01:23.7]} 21. Qg4+ {[%clk 0:01:13.2]} 21... Kd8 {[%clk 0:01:15.2]}
22. Rg1 {[%clk 0:01:07.5]} 22... Bh8 {[%clk 0:01:03.6]} 23. f5 {[%clk
0:01:03.2]} 23... Qh7 {[%clk 0:00:58.9]} 24. h4 {[%clk 0:01:01.9]} 24... Kd7
{[%clk 0:00:54.5]} 25. f6+ {[%clk 0:00:58.4]} 25... Kc6 {[%clk 0:00:53.1]} 26.
b4 {[%clk 0:00:36.4]} 26... Bxf6 {[%clk 0:00:46]} 27. b5+ {[%clk 0:00:35.8]}
27... Kxb5 {[%clk 0:00:39.5]} 28. Qe6 {[%clk 0:00:35.6]} 28... Rg8 {[%clk
0:00:19.7]} 29. Rh1 {[%clk 0:00:23.2]} 29... Qg6 {[%clk 0:00:15.3]} 30. Bc3
{[%clk 0:00:18.1]} 30... Kc6 {[%clk 0:00:11.9]} 31. Ne7+ {[%clk 0:00:17.6]}
31... Bxe7 {[%clk 0:00:10.5]} 32. Qxe7 {[%clk 0:00:17.8]} 32... Qg2 {[%clk
0:00:09]} 33. Rd1 {[%clk 0:00:17.2]} 33... Qxf3 {[%clk 0:00:08.3]} 34. Qe6
{[%clk 0:00:17.5]} 34... Qxe4 {[%clk 0:00:07.6]} 35. h5 {[%clk 0:00:17.5]} 35...
Qd5 {[%clk 0:00:07.6]} 36. Qh3 {[%clk 0:00:15.6]} 36... Qxa2 {[%clk 0:00:06.7]}
37. h6 {[%clk 0:00:15.7]} 37... Rh8 {[%clk 0:00:06.9]} 38. Rh1 {[%clk
0:00:14.3]} 38... Qa3+ {[%clk 0:00:07.2]} 39. Kb1 {[%clk 0:00:13]} 39... b5
{[%clk 0:00:07.7]} 40. h7 {[%clk 0:00:12.6]} 40... Kb6 {[%clk 0:00:07.3]} 41.
Qe6 {[%clk 0:00:11.2]} 41... b4 {[%clk 0:00:06.9]} 42. Bxe5 {[%clk 0:00:10.9]}
42... Kb5 {[%clk 0:00:07.1]} 43. Qd7+ {[%clk 0:00:09.3]} 43... Kc4 {[%clk
0:00:06.2]} 44. d3+ {[%clk 0:00:08.8]} 1-0

[Event "*** Titled Tuesday Blitz"]
[Site "Chess.com"]
[Date "2020.10.20"]
[Round "7"]
[White "BlackBoarder"]
[Black "Manukyan_Artak"]
[Result "1-0"]
[WhiteElo "2591"]
[BlackElo "2414"]
[TimeControl "180+1"]
[EndTime "11:20:37 PDT"]
[Termination "BlackBoarder won on time"]

1. e4 {[%clk 0:02:32.6]} 1... c6 {[%clk 0:02:58.8]} 2. Nf3 {[%clk 0:02:31.4]}
2... d5 {[%clk 0:02:58.8]} 3. Nc3 {[%clk 0:02:30.7]} 3... Bg4 {[%clk 0:02:58]}
4. h3 {[%clk 0:02:30.4]} 4... Bxf3 {[%clk 0:02:57.8]} 5. Qxf3 {[%clk 0:02:30.7]}
5... Nf6 {[%clk 0:02:58.7]} 6. d3 {[%clk 0:02:26.9]} 6... e5 {[%clk 0:02:57.9]}
7. Bg5 {[%clk 0:02:00.1]} 7... Bb4 {[%clk 0:02:54.5]} 8. a3 {[%clk 0:01:40.2]}
8... Bxc3+ {[%clk 0:02:53]} 9. bxc3 {[%clk 0:01:41.1]} 9... Nbd7 {[%clk
0:02:45.1]} 10. exd5 {[%clk 0:01:36.5]} 10... cxd5 {[%clk 0:02:44.3]} 11. Be2
{[%clk 0:01:30.3]} 11... Rc8 {[%clk 0:02:39.3]} 12. Bd2 {[%clk 0:01:24.8]} 12...
e4 {[%clk 0:02:27.3]} 13. Qg3 {[%clk 0:01:21.2]} 13... O-O {[%clk 0:02:22.3]}
14. O-O {[%clk 0:01:16.9]} 14... Qc7 {[%clk 0:02:16.7]} 15. Qh4 {[%clk
0:00:56.2]} 15... Ne5 {[%clk 0:02:07.9]} 16. Rab1 {[%clk 0:00:37.6]} 16... Ng6
{[%clk 0:02:04.1]} 17. Qg3 {[%clk 0:00:34.4]} 17... Qxg3 {[%clk 0:02:02.6]} 18.
fxg3 {[%clk 0:00:35.3]} 18... b6 {[%clk 0:02:01.5]} 19. a4 {[%clk 0:00:26.7]}
19... Rfe8 {[%clk 0:01:52.2]} 20. a5 {[%clk 0:00:19.2]} 20... bxa5 {[%clk
0:01:47.6]} 21. Rb5 {[%clk 0:00:17.4]} 21... d4 {[%clk 0:01:41]} 22. c4 {[%clk
0:00:14.6]} 22... e3 {[%clk 0:01:35.1]} 23. Bxa5 {[%clk 0:00:10.8]} 23... Re5
{[%clk 0:01:35.1]} 24. Rfb1 {[%clk 0:00:04.3]} 24... h5 {[%clk 0:01:21.3]} 25.
Rxe5 {[%clk 0:00:03.5]} 25... Nxe5 {[%clk 0:01:22.2]} 26. Be1 {[%clk 0:00:02]}
26... Nc6 {[%clk 0:01:16.9]} 27. Rb5 {[%clk 0:00:01.7]} 27... g6 {[%clk
0:01:11.8]} 28. Bf3 {[%clk 0:00:02]} 28... Nd7 {[%clk 0:01:06.1]} 29. Kf1 {[%clk
0:00:02.3]} 29... Nce5 {[%clk 0:00:49.7]} 30. Bd5 {[%clk 0:00:02.4]} 30... Rc5
{[%clk 0:00:46.6]} 31. Rxc5 {[%clk 0:00:01.9]} 31... Nxc5 {[%clk 0:00:47.5]} 32.
Ke2 {[%clk 0:00:02.5]} 32... Kg7 {[%clk 0:00:43.7]} 33. Bb4 {[%clk 0:00:02.7]}
33... Ne6 {[%clk 0:00:41.8]} 34. Ba3 {[%clk 0:00:02.4]} 34... g5 {[%clk
0:00:32.9]} 35. Bb2 {[%clk 0:00:02.8]} 35... Kg6 {[%clk 0:00:15.3]} 36. Bxe6
{[%clk 0:00:03]} 36... fxe6 {[%clk 0:00:16.2]} 37. Bxd4 {[%clk 0:00:03.4]} 37...
Nc6 {[%clk 0:00:16.3]} 38. Bxe3 {[%clk 0:00:03.6]} 38... e5 {[%clk 0:00:16.5]}
39. Bc5 {[%clk 0:00:03.7]} 39... Kf5 {[%clk 0:00:14.5]} 40. Ke3 {[%clk
0:00:04.1]} 40... g4 {[%clk 0:00:14.6]} 41. h4 {[%clk 0:00:02.8]} 41... a5
{[%clk 0:00:13.7]} 42. c3 {[%clk 0:00:03.2]} 42... a4 {[%clk 0:00:12.9]} 43. d4
{[%clk 0:00:02.9]} 43... Na5 {[%clk 0:00:10.1]} 44. dxe5 {[%clk 0:00:01.3]}
44... Nxc4+ {[%clk 0:00:07]} 45. Kd4 {[%clk 0:00:01.9]} 45... Nxe5 {[%clk
0:00:06.6]} 46. Ba3 {[%clk 0:00:02.2]} 1-0